fUSD/lending_fUSD_20241227
["ID","MTS","AMOUNT","RATE_DAILY","PERIOD"]
[346795807,1735293048618,-500.0,0.00011189,2]
[346795808,1735293048627,-503.81018042,0.00011189,2]
[346795809,1735293048636,-500.0,0.00011189,2]
[346795810,1735293048645,-1047.38,0.00011189,2]
[346795811,1735293048654,-1285.75,0.00011189,2]
[346795812,1735293048663,-901.61,0.00011189,2]
[346795813,1735293048672,-500.0,0.00011189,2]
[346795814,1735293048681,-2684.28,0.00011189,2]
[346795815,1735293048690,-997.21,0.00011191,2]
[346795816,1735293048699,-16777.57,0.00011191,2]
[346795817,1735293048708,-3266.35,0.00011191,2]
[346795818,1735293048718,-500.0,0.00011191,2]
[346795819,1735293048728,-4292.37,0.00011191,2]
[346795820,1735293048738,-2377.78,0.00011191,2]
[346795821,1735293048748,-4330.55,0.00011191,2]
[346795822,1735293048758,-500.0,0.00011191,2]
[346795823,1735293048768,-500.0,0.00011191,2]
[346795824,1735293048778,-500.0,0.00011191,2]
[346795825,1735293048788,-414.47908615,0.00011191,2]
[346795826,1735293048798,-500.0,0.00011191,2]
[346795827,1735293048807,-2635.05,0.00011191,2]
[346795828,1735293048817,-4321.15,0.00011191,2]
[346795829,1735293048828,-4631.79,0.00011191,2]
[346795830,1735293049073,-3329.09,0.00011191,2]
[346795831,1735293049083,-8113.68,0.00011191,2]
[346795832,1735293049093,-4621.97,0.00011191,2]
[346795833,1735293049103,-20085.79,0.00011191,2]
[346795834,1735293049112,-11883.24,0.00011191,2]
[346795835,1735293049122,-99376.3985527,0.00011192,2]
[346795836,1735293049131,-860.28916309,0.00011192,2]
[346795837,1735293049140,-1480571.91358295,0.00011192,4]
[346795838,1735293049643,-3339.46560004,0.00011192,4]
[346795839,1735293049654,-111303.9137206,0.00011192,4]
[346795840,1735293049777,-330.52207907,0.00010996,2]
[346795841,1735293049794,-202.0588912,0.00010996,2]
[346795842,1735293049804,-280.63029,0.00011192,4]
[346795843,1735293049873,-652.44627459,0.00011192,4]
[346795844,1735293050676,-500.0,0.00010995,2]
[346795845,1735293050686,-500.0,0.00010996,2]
[346795846,1735293050696,-500.0,0.00010997,2]
[346795847,1735293050705,-1249.06159337,0.00011192,4]
[346795848,1735293050716,-3779.816675,0.00011192,4]
[346795849,1735293050728,-26104.88159629,0.00011192,4]
[346795850,1735293050748,-667.877,0.00011192,4]
[346795851,1735293050797,-1178.60791373,0.00011192,4]
[346795852,1735293050808,-1378.23015953,0.00011192,4]
[346795853,1735293050827,-500.0,0.00010996,2]
[346795854,1735293050837,-24522.73934698,0.00011192,4]
[346795855,1735293051641,-553.08,0.00010995,2]
[346795856,1735293051649,-405.48,0.00010995,2]
[346795857,1735293051658,-94.52,0.00010995,2]
[346795858,1735293051666,-500.0,0.00010995,2]
[346795859,1735293051673,-500.0,0.00010996,2]
[346795860,1735293051682,-500.0,0.00010997,2]
[346795861,1735293051690,-500.0,0.00010997,2]
[346795862,1735293051697,-266.95529408,0.00010997,2]
[346795863,1735293051707,-233.04470592,0.00010997,2]
[346795864,1735293051715,-500.0,0.00010997,2]
[346795865,1735293051724,-7221.05763207,0.00011192,4]
[346795866,1735293051747,-11070.648445,0.00011192,4]
[346795867,1735293051757,-485.58925356,0.00011192,4]
[346795868,1735293051769,-2840.18108742,0.00011192,4]
[346795869,1735293062474,659.0,8.571e-05,2]
[346795870,1735293211449,-19480.0,0.00011192,4]
[346795872,1735293418480,219.0,0.0002,120]
[346795878,1735293942806,-666.122719,0.00011188,4]
[346795879,1735293942833,-666.122719,0.00011188,4]
[346795880,1735293942860,-666.122719,0.00011188,4]
[346795881,1735293942887,-666.122719,0.00011188,4]
[346795882,1735293942914,-335.509124,0.00011188,4]
[346795883,1735293957389,-330.613595,0.00011188,4]
[346795884,1735293957715,-269.386405,0.00011188,4]
[346795885,1735293970622,687.71,8.219e-05,2]
[346795886,1735293994191,840.9169542,0.0002,120]
[346795904,1735294123996,500.0,0.0002,120]
[346795905,1735294143288,1000.0,0.0002,120]
[346795913,1735294156120,-916.0,9.8e-05,2]
[346795914,1735294156143,-3062.908388,9.844e-05,2]
[346795928,1735294232307,-353.730012,9.831e-05,2]
[346795929,1735294232412,-857.76981249,9.831e-05,2]
[346795930,1735294232439,-16.14017551,9.831e-05,2]
[346795931,1735294232449,-300.0,9.843e-05,2]
[346795932,1735294232459,-2304.16715129,9.844e-05,2]
[346795933,1735294232471,-10691.40446071,9.844e-05,2]
[346795934,1735294232483,-4019.61,9.882e-05,2]
[346795935,1735294232493,-250.0,9.893e-05,2]
[346795936,1735294232502,-250.0,9.925e-05,2]
[346795937,1735294232511,-1000.0,9.937e-05,2]
[346795938,1735294232521,-3843.86,9.982e-05,2]
[346795939,1735294232530,-644.93,0.00010017,2]
[346795940,1735294232539,-600.0,0.000101,3]
[346795941,1735294232549,-1500.0,0.00010113,2]
[346795942,1735294232558,-156.92,0.00010137,2]
[346795943,1735294232567,-1098.12360853,0.000102,3]
[346795944,1735294232585,-101.87639147,0.000102,3]
[346795945,1735294232594,-1800.0,0.000103,3]
[346795946,1735294232604,-166.71,0.00010362,2]
[346795947,1735294232613,-389.67030853,0.000104,3]
[346795959,1735294238197,-2010.32969147,0.000104,3]
[346795960,1735294238207,-687.71,0.00010462,2]
[346795961,1735294238217,-639.54091276,0.000105,2]
[346795962,1735294238227,-3000.0,0.000105,3]
[346795963,1735294238242,-600.0,0.000106,3]
[346795964,1735294238252,-600.0,0.000107,3]
[346795965,1735294238262,-600.0,0.000108,3]
[346795966,1735294238271,-186.32293362,0.00010894,2]
[346795967,1735294238281,-600.0,0.000109,3]
[346795968,1735294238290,-169.81221272,0.0001099,2]
[346795969,1735294238300,-705.78324114,0.00010992,2]
[346795970,1735294238310,-586.7596171,0.00010993,2]
[346795971,1735294238350,-432.4203829,0.00010993,2]
[346795972,1735294238360,-59.6446171,0.00010993,2]
[346795973,1735294238371,-346.83503796,0.00010993,2]
[346795974,1735294238389,-1000.0,0.00010993,2]
[346795975,1735294238400,-883.760001,0.00010993,2]
[346795976,1735294238411,-485.7590368,0.00010993,2]
[346795977,1735294238439,-3995.78130714,0.00010993,2]
[346795978,1735294238449,-2515.83,0.00010993,2]
[346795979,1735294238460,-1548.0,0.00010993,2]
[346795980,1735294238470,-4675.72,0.00010993,2]
[346795981,1735294238481,-2457.68,0.00010993,2]
[346795982,1735294238491,-10631.93,0.00010993,2]
[346795983,1735294238500,-3215.9,0.00010993,2]
[346795984,1735294238509,-16.09347926,0.00010993,2]
[346796007,1735294240456,-0.01004573,0.00010993,2]
[346796008,1735294240664,-1182.63329494,0.00010993,2]
[346796009,1735294240693,-480.16318007,0.00010993,2]
[346796010,1735294240706,-493.72073413,0.00010993,2]
[346796020,1735294243521,-1567.96926587,0.00010993,2]
[346796021,1735294243531,-901.55,0.00010993,2]
[346796022,1735294243540,-506.66,0.00010993,2]
[346796023,1735294243550,-895.95,0.00010993,2]
[346796024,1735294243559,-2282.62,0.00010993,2]
[346796025,1735294243569,-4126.83,0.00010993,2]
[346796026,1735294243578,-793.98,0.00010993,2]
[346796027,1735294243588,-847.46,0.00010993,2]
[346796028,1735294243597,-500.0,0.00010993,2]
[346796029,1735294243607,-1885.64,0.00010993,2]
[346796030,1735294243616,-1004.85,0.00010993,2]
[346796031,1735294243625,-500.0,0.00010994,2]
[346796032,1735294243635,-627.84,0.00010994,2]
[346796033,1735294243644,-500.0,0.00010994,2]
[346796034,1735294243653,-500.0,0.00010994,2]
[346796035,1735294243663,-501.43480436,0.00010994,2]
[346796036,1735294243672,-980.84,0.00010994,2]
[346796037,1735294243682,-627.49,0.00010994,2]
[346796038,1735294243693,-186.65528207,0.00010994,2]
[346796061,1735294246650,-313.34471793,0.00010994,2]
[346796062,1735294246660,-500.0,0.00010994,2]
[346796063,1735294246669,-500.0,0.00010994,2]
[346796064,1735294246679,-885.39,0.00010994,2]
[346796065,1735294246689,-647.25,0.00010994,2]
[346796066,1735294246703,-527.45,0.00010994,2]
[346796067,1735294246712,-830.23,0.00010994,2]
[346796068,1735294246721,-500.0,0.00010994,2]
[346796069,1735294246731,-500.0,0.00010994,2]
[346796070,1735294246740,-753.61,0.00010994,2]
[346796071,1735294246750,-500.0,0.00010994,2]
[346796072,1735294246759,-1543.18,0.00010994,2]
[346796073,1735294246768,-500.0,0.00010994,2]
[346796074,1735294246777,-500.0,0.00010994,2]
[346796075,1735294246787,-500.0,0.00010994,2]
[346796076,1735294246797,-500.0,0.00010994,2]
[346796077,1735294246807,-500.0,0.00010994,2]
[346796078,1735294246818,-597.75,0.00010994,2]
[346796079,1735294246828,-500.0,0.00010994,2]
[346796080,1735294246838,-676.28,0.00010994,2]
[346796081,1735294246849,-500.0,0.00010994,2]
[346796082,1735294246859,-531.18,0.00010994,2]
[346796083,1735294246869,-500.0,0.00010994,2]
[346796084,1735294246879,-1169.63,0.00010994,2]
[346796085,1735294246888,-500.0,0.00010994,2]
[346796087,1735294246898,-500.0,0.00010994,2]
[346796089,1735294246907,-500.0,0.00010994,2]
[346796090,1735294246916,-500.0,0.00010994,2]
[346796092,1735294246926,-764.05,0.00010994,2]
[346796095,1735294246936,-500.0,0.00010994,2]
[346796096,1735294246946,-2520.69,0.00010994,2]
[346796098,1735294246955,-500.0,0.00010994,2]
[346796101,1735294246964,-755.36,0.00010994,2]
[346796103,1735294246974,-500.0,0.00010994,2]
[346796104,1735294246984,-500.0,0.00010994,2]
[346796106,1735294246994,-1674.88,0.00010994,2]
[346796108,1735294247003,-500.0,0.00010994,2]
[346796110,1735294247013,-500.0,0.00010994,2]
[346796112,1735294247022,-500.0,0.00010994,2]
[346796114,1735294247032,-500.0,0.00010994,2]
[346796116,1735294247041,-666.77,0.00010994,2]
[346796118,1735294247051,-500.0,0.00010994,2]
[346796120,1735294247061,-500.0,0.00010994,2]
[346796123,1735294247071,-1722.64,0.00010994,2]
[346796124,1735294247080,-500.0,0.00010994,2]
[346796126,1735294247089,-943.37,0.00010994,2]
[346796128,1735294247099,-500.0,0.00010994,2]
[346796130,1735294247109,-500.0,0.00010994,2]
[346796132,1735294247119,-1165.5,0.00010994,2]
[346796134,1735294247129,-751.91,0.00010994,2]
[346796136,1735294247139,-664.35,0.00010994,2]
[346796138,1735294247148,-500.0,0.00010994,2]
[346796140,1735294247157,-500.0,0.00010994,2]
[346796142,1735294247166,-566.68,0.00010994,2]
[346796144,1735294247175,-500.0,0.00010994,2]
[346796146,1735294247184,-500.0,0.00010994,2]
[346796148,1735294247193,-565.14,0.00010994,2]
[346796150,1735294247203,-925.8,0.00010994,2]
[346796152,1735294247212,-500.0,0.00010994,2]
[346796153,1735294247222,-500.0,0.00010994,2]
[346796154,1735294247232,-500.0,0.00010994,2]
[346796155,1735294247242,-500.0,0.00010994,2]
[346796156,1735294247252,-500.0,0.00010994,2]
[346796157,1735294247261,-500.0,0.00010994,2]
[346796158,1735294247271,-500.0,0.00010994,2]
[346796159,1735294247280,-500.0,0.00010994,2]
[346796160,1735294247289,-500.0,0.00010994,2]
[346796161,1735294247299,-1120.21,0.00010994,2]
[346796162,1735294247308,-500.0,0.00010994,2]
[346796163,1735294247317,-500.0,0.00010994,2]
[346796164,1735294247327,-1001.82,0.00010994,2]
[346796165,1735294247336,-500.0,0.00010994,2]
[346796166,1735294247345,-500.0,0.00010994,2]
[346796167,1735294247354,-583.51,0.00010994,2]
[346796169,1735294247363,-500.0,0.00010994,2]
[346796171,1735294247372,-500.0,0.00010994,2]
[346796173,1735294247381,-500.0,0.00010994,2]
[346796175,1735294247391,-641.56,0.00010994,2]
[346796177,1735294247401,-500.0,0.00010994,2]
[346796179,1735294247410,-500.0,0.00010994,2]
[346796181,1735294247420,-500.0,0.00010994,2]
[346796183,1735294247429,-500.0,0.00010994,2]
[346796185,1735294247439,-500.0,0.00010994,2]
[346796187,1735294247448,-1443.09,0.00010994,2]
[346796189,1735294247457,-500.0,0.00010994,2]
[346796191,1735294247466,-500.0,0.00010994,2]
[346796193,1735294247475,-500.0,0.00010994,2]
[346796195,1735294247485,-500.0,0.00010994,2]
[346796197,1735294247495,-500.0,0.00010994,2]
[346796199,1735294247504,-500.0,0.00010994,2]
[346796201,1735294247513,-500.0,0.00010994,2]
[346796203,1735294247522,-500.0,0.00010994,2]
[346796205,1735294247531,-825.03,0.00010994,2]
[346796207,1735294247540,-1013.04,0.00010994,2]
[346796208,1735294247550,-500.0,0.00010994,2]
[346796211,1735294247559,-500.0,0.00010994,2]
[346796213,1735294247570,-500.0,0.00010994,2]
[346796215,1735294247579,-729.78,0.00010994,2]
[346796217,1735294247588,-500.0,0.00010994,2]
[346796218,1735294247597,-500.0,0.00010994,2]
[346796220,1735294247607,-500.0,0.00010994,2]
[346796223,1735294247618,-500.0,0.00010994,2]
[346796225,1735294247630,-500.0,0.00010994,2]
[346796227,1735294247638,-500.0,0.00010994,2]
[346796229,1735294247647,-1181.54,0.00010994,2]
[346796231,1735294247656,-500.0,0.00010994,2]
[346796233,1735294247665,-1897.45,0.00010994,2]
[346796234,1735294247679,-641.88031817,0.00010994,2]
[346796237,1735294247689,-922.14,0.00010994,2]
[346796238,1735294247703,-1818.57,0.00010994,2]
[346796241,1735294247713,-556.59848299,0.00010994,2]
[346796243,1735294247722,-703.61,0.00010994,2]
[346796244,1735294247731,-500.0,0.00010994,2]
[346796246,1735294247741,-580.96,0.00010994,2]
[346796248,1735294247751,-1870.63,0.00010994,2]
[346796251,1735294247760,-603.72,0.00010994,2]
[346796253,1735294247770,-500.0,0.00010994,2]
[346796255,1735294247779,-500.0,0.00010994,2]
[346796256,1735294247788,-500.0,0.00010994,2]
[346796259,1735294247798,-901.36,0.00010994,2]
[346796260,1735294247807,-574.12,0.00010994,2]
[346796262,1735294247817,-500.0,0.00010994,2]
[346796264,1735294247826,-500.0,0.00010994,2]
[346796266,1735294247835,-374.33048922,0.00010994,2]
[346796268,1735294247844,-500.0,0.00010994,2]
[346796270,1735294247854,-607.13,0.00010994,2]
[346796272,1735294247863,-500.0,0.00010994,2]
[346796274,1735294247873,-960.96,0.00010994,2]
[346796276,1735294247882,-500.0,0.00010994,2]
[346796278,1735294247892,-500.0,0.00010994,2]
[346796280,1735294247901,-500.0,0.00010994,2]
[346796282,1735294247910,-526.45,0.00010994,2]
[346796284,1735294247920,-569.71,0.00010994,2]
[346796286,1735294247929,-500.0,0.00010994,2]
[346796288,1735294247939,-500.0,0.00010994,2]
[346796290,1735294247948,-679.79,0.00010994,2]
[346796292,1735294247957,-500.0,0.00010994,2]
[346796294,1735294247966,-500.0,0.00010994,2]
[346796296,1735294247975,-500.0,0.00010994,2]
[346796298,1735294247984,-999.5,0.00010994,2]
[346796299,1735294247995,-500.0,0.00010994,2]
[346796300,1735294248005,-500.0,0.00010994,2]
[346796301,1735294248016,-500.695611,0.00010994,2]
[346796302,1735294248026,-506.32380574,0.00010994,2]
[346796303,1735294248035,-500.0,0.00010994,2]
[346796304,1735294248045,-539.42,0.00010994,2]
[346796305,1735294248054,-500.0,0.00010994,2]
[346796306,1735294248064,-500.0,0.00010994,2]
[346796307,1735294248074,-500.0,0.00010994,2]
[346796308,1735294248084,-500.0,0.00010994,2]
[346796309,1735294248093,-500.37784978,0.00010994,2]
[346796310,1735294248103,-1282.18,0.00010994,2]
[346796311,1735294248112,-500.0,0.00010994,2]
[346796312,1735294248121,-167.76378265,0.00010994,2]
[346796313,1735294248131,-500.0,0.00010994,2]
[346796314,1735294248140,-500.0,0.00010994,2]
[346796315,1735294248150,-563.25306017,0.00010994,2]
[346796316,1735294248160,-500.0,0.00010994,2]
[346796317,1735294248169,-500.0,0.00010994,2]
[346796318,1735294248178,-2519.54,0.00010994,2]
[346796319,1735294248188,-503.93,0.00010994,2]
[346796320,1735294248197,-500.0,0.00010994,2]
[346796321,1735294248206,-500.0,0.00010994,2]
[346796322,1735294248215,-1155.89,0.00010994,2]
[346796323,1735294248225,-500.0,0.00010994,2]
[346796324,1735294248234,-500.0,0.00010994,2]
[346796325,1735294248245,-500.0,0.00010994,2]
[346796326,1735294248255,-1455.4,0.00010994,2]
[346796327,1735294248264,-500.0,0.00010994,2]
[346796328,1735294248273,-183.0292086,0.00010994,2]
[346796329,1735294248283,-500.0,0.00010994,2]
[346796330,1735294248292,-500.0,0.00010994,2]
[346796331,1735294248301,-1043.17,0.00010994,2]
[346796332,1735294248311,-500.0,0.00010994,2]
[346796333,1735294248320,-500.0,0.00010994,2]
[346796334,1735294248331,-500.0,0.00010994,2]
[346796335,1735294248340,-500.0,0.00010994,2]
[346796336,1735294248350,-500.0,0.00010994,2]
[346796337,1735294248359,-500.0,0.00010994,2]
[346796338,1735294248369,-500.0,0.00010994,2]
[346796339,1735294248379,-500.0,0.00010994,2]
[346796340,1735294248389,-2243.55,0.00010994,2]
[346796341,1735294248398,-1773.08,0.00010994,2]
[346796342,1735294248407,-500.0,0.00010994,2]
[346796343,1735294248416,-500.0,0.00010994,2]
[346796344,1735294248426,-500.0,0.00010994,2]
[346796345,1735294248435,-555.41,0.00010994,2]
[346796346,1735294248444,-500.0,0.00010994,2]
[346796347,1735294248454,-7096.32,0.00010994,2]
[346796348,1735294248464,-933.08,0.00010994,2]
[346796349,1735294248473,-500.0,0.00010994,2]
[346796350,1735294248482,-533.62858797,0.00010994,2]
[346796351,1735294248492,-847.35,0.00010994,2]
[346796352,1735294248502,-500.0,0.00010994,2]
[346796353,1735294248511,-500.0,0.00010994,2]
[346796354,1735294248520,-1000.35,0.00010994,2]
[346796355,1735294248529,-923.35,0.00010994,2]
[346796356,1735294248539,-2849.29,0.00010994,2]
[346796357,1735294248548,-690.19,0.00010994,2]
[346796358,1735294248557,-500.0,0.00010994,2]
[346796359,1735294248566,-681.12,0.00010994,2]
[346796360,1735294248575,-500.0,0.00010994,2]
[346796361,1735294248586,-500.0,0.00010994,2]
[346796362,1735294248596,-1300.29,0.00010994,2]
[346796363,1735294248605,-500.0,0.00010994,2]
[346796364,1735294248614,-500.0,0.00010994,2]
[346796365,1735294248623,-4211.47,0.00010994,2]
[346796366,1735294248632,-500.0,0.00010994,2]
[346796367,1735294248642,-500.0,0.00010994,2]
[346796368,1735294248650,-500.0,0.00010994,2]
[346796369,1735294248658,-500.0,0.00010994,2]
[346796370,1735294248667,-500.0,0.00010994,2]
[346796371,1735294248675,-500.0,0.00010994,2]
[346796372,1735294248684,-500.0,0.00010994,2]
[346796373,1735294248695,-500.0,0.00010994,2]
[346796374,1735294248705,-596.13,0.00010994,2]
[346796375,1735294248715,-500.0,0.00010994,2]
[346796376,1735294248724,-1791.71,0.00010994,2]
[346796377,1735294248735,-500.0,0.00010994,2]
[346796378,1735294248745,-500.0,0.00010994,2]
[346796379,1735294248755,-500.0,0.00010994,2]
[346796380,1735294248765,-500.0,0.00010994,2]
[346796381,1735294248776,-500.0,0.00010994,2]
[346796382,1735294248785,-500.0,0.00010994,2]
[346796383,1735294248795,-755.65,0.00010994,2]
[346796384,1735294248804,-500.0,0.00010994,2]
[346796385,1735294248814,-500.0,0.00010994,2]
[346796386,1735294248823,-3635.76,0.00010994,2]
[346796387,1735294248832,-500.0,0.00010994,2]
[346796388,1735294248842,-500.0,0.00010994,2]
[346796389,1735294248851,-500.0,0.00010994,2]
[346796390,1735294248861,-540.1,0.00010994,2]
[346796391,1735294248870,-500.0,0.00010994,2]
[346796392,1735294248879,-996.08,0.00010994,2]
[346796393,1735294248889,-509.53,0.00010994,2]
[346796394,1735294248899,-500.0,0.00010994,2]
[346796395,1735294248908,-1351.51,0.00010994,2]
[346796396,1735294248917,-500.0,0.00010994,2]
[346796397,1735294248927,-503.46959388,0.00010994,2]
[346796398,1735294248936,-727.43,0.00010994,2]
[346796399,1735294248945,-500.0,0.00010994,2]
[346796400,1735294248955,-504.48688661,0.00010994,2]
[346796401,1735294248964,-594.29,0.00010994,2]
[346796402,1735294248974,-500.0,0.00010994,2]
[346796403,1735294248983,-500.0,0.00010994,2]
[346796404,1735294248994,-500.0,0.00010994,2]
[346796405,1735294249004,-500.0,0.00010994,2]
[346796406,1735294249014,-500.0,0.00010994,2]
[346796407,1735294249023,-500.0,0.00010994,2]
[346796408,1735294249032,-2779.24,0.00010994,2]
[346796409,1735294249042,-500.0,0.00010994,2]
[346796410,1735294249052,-791.74,0.00010994,2]
[346796411,1735294249061,-500.0,0.00010994,2]
[346796412,1735294249070,-500.0,0.00010994,2]
[346796413,1735294249079,-500.0,0.00010994,2]
[346796414,1735294249088,-500.0,0.00010994,2]
[346796415,1735294249098,-926.08,0.00010994,2]
[346796416,1735294249107,-4599.0,0.00010994,2]
[346796417,1735294249117,-500.0,0.00010994,2]
[346796418,1735294249126,-595.21,0.00010994,2]
[346796419,1735294249135,-500.0,0.00010994,2]
[346796420,1735294249145,-500.0,0.00010994,2]
[346796421,1735294249155,-498.61658974,0.00010994,2]
[346796422,1735294249164,-500.0,0.00010994,2]
[346796423,1735294249173,-500.0,0.00010994,2]
[346796424,1735294249183,-502.19157219,0.00010994,2]
[346796425,1735294249192,-1482.37,0.00010994,2]
[346796426,1735294249202,-6223.92,0.00010994,2]
[346796427,1735294249211,-500.0,0.00010994,2]
[346796428,1735294249220,-1142.47,0.00010994,2]
[346796429,1735294249230,-500.0,0.00010994,2]
[346796430,1735294249239,-500.99473172,0.00010994,2]
[346796431,1735294249249,-515.89,0.00010994,2]
[346796432,1735294249259,-2236.23,0.00010994,2]
[346796433,1735294249268,-500.0,0.00010994,2]
[346796434,1735294249278,-500.0,0.00010994,2]
[346796435,1735294249288,-500.0,0.00010994,2]
[346796436,1735294249298,-1185.81,0.00010994,2]
[346796437,1735294249307,-500.0,0.00010994,2]
[346796438,1735294249317,-500.0,0.00010994,2]
[346796439,1735294249326,-500.0,0.00010994,2]
[346796440,1735294249335,-7200.96,0.00010994,2]
[346796441,1735294249346,-500.0,0.00010994,2]
[346796442,1735294249356,-500.0,0.00010994,2]
[346796443,1735294249366,-248.76275087,0.00010994,2]
[346796444,1735294249375,-500.0,0.00010994,2]
[346796445,1735294249384,-500.0,0.00010994,2]
[346796446,1735294249394,-500.0,0.00010994,2]
[346796447,1735294249403,-766.78,0.00010994,2]
[346796448,1735294249413,-2627.18,0.00010994,2]
[346796449,1735294249423,-3242.02,0.00010994,2]
[346796450,1735294249432,-500.0,0.00010994,2]
[346796451,1735294249441,-162.29170884,0.00010994,2]
[346796452,1735294249451,-389.11306022,0.00010994,2]
[346796453,1735294249461,-500.0,0.00010994,2]
[346796454,1735294249470,-888.19,0.00010994,2]
[346796455,1735294249479,-4406.02,0.00010994,2]
[346796456,1735294249488,-2054.18,0.00010994,2]
[346796457,1735294249499,-6104.4,0.00010994,2]
[346796458,1735294249508,-500.0,0.00010994,2]
[346796459,1735294249519,-500.0,0.00010994,2]
[346796460,1735294249528,-500.0,0.00010994,2]
[346796461,1735294249537,-572.21,0.00010994,2]
[346796462,1735294249546,-500.0,0.00010994,2]
[346796463,1735294249556,-500.0,0.00010994,2]
[346796464,1735294249565,-186.31940413,0.00010994,2]
[346796465,1735294249574,-1231.92,0.00010994,2]
[346796466,1735294249583,-500.0,0.00010994,2]
[346796467,1735294249592,-500.0,0.00010994,2]
[346796468,1735294249601,-500.0,0.00010994,2]
[346796469,1735294249610,-536.66,0.00010994,2]
[346796470,1735294249620,-1352.33,0.00010994,2]
[346796471,1735294249629,-500.0,0.00010994,2]
[346796472,1735294249638,-500.0,0.00010994,2]
[346796473,1735294249647,-2145.57,0.00010994,2]
[346796474,1735294249657,-500.0,0.00010994,2]
[346796475,1735294249667,-500.0,0.00010994,2]
[346796476,1735294249677,-607.25,0.00010994,2]
[346796477,1735294249687,-500.0,0.00010994,2]
[346796478,1735294249698,-2962.05,0.00010994,2]
[346796479,1735294249942,-500.0,0.00010994,2]
[346796480,1735294249953,-500.0,0.00010994,2]
[346796481,1735294249963,-718.22,0.00010994,2]
[346796482,1735294249974,-1752.49,0.00010994,2]
[346796483,1735294249984,-561.12,0.00010994,2]
[346796484,1735294249995,-2078.8,0.00010994,2]
[346796485,1735294250004,-272.544328,0.00010994,2]
[346796486,1735294250014,-500.0,0.00010994,2]
[346796487,1735294250024,-3216.15,0.00010994,2]
[346796488,1735294250033,-500.0,0.00010994,2]
[346796489,1735294250043,-500.0,0.00010994,2]
[346796490,1735294250052,-1070.89,0.00010994,2]
[346796491,1735294250062,-500.0,0.00010994,2]
[346796492,1735294250071,-500.0,0.00010994,2]
[346796493,1735294250082,-1519.21,0.00010994,2]
[346796494,1735294250091,-500.0,0.00010994,2]
[346796495,1735294250101,-500.0,0.00010994,2]
[346796496,1735294250111,-500.0,0.00010994,2]
[346796497,1735294250121,-500.0,0.00010994,2]
[346796498,1735294250131,-1064.65988858,0.00010994,3]
[346796499,1735294250143,-500.0,0.00010994,2]
[346796500,1735294250152,-511.26591481,0.00010994,2]
[346796501,1735294250163,-500.0,0.00010994,2]
[346796502,1735294250172,-781.64,0.00010994,2]
[346796503,1735294250182,-1393.8,0.00010994,2]
[346796504,1735294250192,-500.0,0.00010994,2]
[346796505,1735294250201,-1463.77,0.00010994,2]
[346796506,1735294250212,-651.56,0.00010994,2]
[346796507,1735294250222,-500.0,0.00010994,2]
[346796508,1735294250231,-942.98,0.00010994,2]
[346796509,1735294250240,-500.0,0.00010994,2]
[346796510,1735294250250,-500.0,0.00010994,2]
[346796511,1735294250259,-500.0,0.00010994,2]